Cogmind - Beta 13 @@@ ROGUE MODE // 2024.04.14 @ 04:14:33 Player: Body_Elektric Result: Destroyed self with Grenade Launcher Performance ------------- Evolutions (0) 0 Regions Visited (2) 400 Robots Destroyed (28) 140 Value Destroyed (524) 524 Prototype IDs (2) 40 Alien Tech Used (0) 0 Bonus (25) 25 TOTAL SCORE: 1129 Bonus ------- Follower Combat Kills 25 Cogmind --------- Core Integrity 0/250 Matter 277/300 Energy 256/265 System Corruption 0% Temperature Cool (0) Movement Rolling (125) Ox3 Location -10/Mines Parts ------- > --- POWER (1) -------- Improved Ion Engine > --- PROPULSION (2) --- Light Treads Wheel > --- UTILITY (2) ------ Large Storage Unit Seismic Detector > --- WEAPON (2) ------- Heavy Assault Rifle Grenade Launcher > --- INVENTORY (15) --- Ion Engine Light Treads Light Treads Wheel Huge Storage Unit Large Matter Pod (150) Improved Terrain Scanner Light Armor Plating Beam Cannon Heavy Assault Rifle Light Cannon Datajack Mining Claw Peak State ------------ > --- POWER ------------ Improved Ion Engine > --- PROPULSION ------- Light Treads Light Treads > --- UTILITY ---------- Large Storage Unit Seismic Detector > --- WEAPON ----------- Heavy Assault Rifle Heavy Assault Rifle > --- INVENTORY -------- Light Ion Engine Light Treads Wheel Wheel Huge Storage Unit Large Matter Pod Improved Terrain Scanner Light Armor Plating Beam Cannon Light Cannon Grenade Launcher Datajack Mining Claw [Rating: 11] Favorites ----------- Power Light Ion Engine Engine Light Ion Engine Propulsion Light Treads Treads Light Treads Wheel Wheel Utility Seismic Detector Device Seismic Detector Storage Large Storage Unit Processor Transport Network Coupler Weapon Assault Rifle Energy Gun EM Pulse Gun Energy Cannon Beam Cannon Ballistic Gun Assault Rifle Launcher Grenade Launcher Impact Weapon Heavy Hammer Slashing Weapon Mining Claw Build | -11 -10 -10 ------- Run | Yrd Mat Min Slots Evolved . | . . . Power . | . . . Propulsion . | . . . Utility . | . . . Weapon . | . . . Parts Attached 39 | 7 19 13 Power 4 | 1 2 1 Engine 4 | 1 2 1 Core . | . . . Reactor . | . . . Propulsion 9 | 2 5 2 Treads 7 | 2 4 1 Leg . | . . . Wheel 2 | . 1 1 Hover . | . . . Flight . | . . . Utility 6 | 2 3 1 Device 3 | 1 1 1 Storage 2 | 1 1 . Processor 1 | . 1 . Hackware . | . . . Protection . | . . . Artifact . | . . . Weapon 20 | 2 9 9 Energy Gun 3 | 1 2 . Energy Cannon 1 | . . 1 Ballistic Gun 11 | 1 5 5 Ballistic Cannon . | . . . Launcher 3 | . 1 2 Special Weapon . | . . . Impact Weapon 1 | . 1 . Slashing Weapon 1 | . . 1 Piercing Weapon . | . . . Special Melee Weapon . | . . . Unidentified Prototypes . | . . . Parts Lost 7 | . 2 5 Power 2 | . 1 1 Propulsion 1 | . . 1 Utility 1 | . . 1 Weapon 3 | . 1 2 Highest Loss Streak 4 | . 1 4 To Critical Strikes . | . . . Average Slot Usage (%) 98 | . 99 94 Engine 13 | . 13 13 Treads 25 | . 27 18 Wheel 2 | . . 8 Device 12 | . 14 10 Storage 14 | . 14 14 Energy Gun 1 | . 2 . Ballistic Gun 24 | . 24 23 Launcher 1 | . . 3 Naked Turns . | . . . Heaviest Build 34 | 13 30 34 Greatest Support 40 | 40 40 40 Greatest Overweight (x) 3 | . . 3 Average Overweight (x) . | . . 1 Largest Inventory Capacity 15 | 8 15 15 Average Capacity 13 | 7 13 15 Most Carried 15 | 5 13 15 Average Carried 10 | 3 9 13 Final Capacity 15 | 8 15 15 Final Carried 13 | 5 13 13 Class Distribution -------------------- 61% | Mutant 38% | Scavenger-Mutant Dominant Class ---------------- Mutant | -10/Materials Scavenger-Mutant | -10/Mines Resources | -11 -10 -10 ----------- Run | Yrd Mat Min Matter Collected 1165 | 294 656 215 Remotely . | . . . Salvage Created 841 | 115 567 159 Parts 53 | 6 31 16 Haulers Intercepted 2 | . 2 . Recyclers Shooed . | . . . Parts Field Recycled . | . . . Retrieved Matter . | . . . Parts Self-Destructed . | . . . Prevented . | . . . Kills | -11 -10 -10 ------- Run | Yrd Mat Min Combat Hostiles Destroyed 19 | . 14 5 Guns 16 | . 13 3 AOE 2 | . . 2 Classes Destroyed 7 | 2 4 1 Worker 3 | . 3 . Tunneler 3 | 1 . 2 Hauler 2 | . 2 . Recycler 1 | 1 . . Swarmer 9 | . 6 3 Grunt 9 | . 8 1 Sentry 1 | . . 1 Best Kill Streak 5 | 2 5 4 Combat Bots Only 3 | . 3 3 Max Kills in Single Turn 2 | 1 1 2 Gunslinging . | . . . Exploded 1 | . . 1 Melee . | . . . Uniques/NPCs Destroyed . | . . . Combat | -11 -10 -10 -------- Run | Yrd Mat Min Hostile Shots Fired 122 | . 77 45 Missed 23 | . 14 9 Damage Taken 1147 | . 661 486 Core 250 | . 135 115 Absorbed by Shields . | . . . Core Remaining (%) 100 | 100 . . Volleys Fired 112 | 8 81 23 Largest 2 | 2 2 2 Hottest 80 | 60 76 80 Shots Fired 199 | 9 154 36 Gun 194 | 9 154 31 Cannon 3 | . . 3 Launcher 2 | . . 2 Special . | . . . Kinetic 186 | 8 147 31 Thermal 7 | . 4 3 Explosive 2 | . . 2 Electromagnetic 4 | 1 3 . Robot Hit Streak 12 | 7 9 12 Robot Miss Streak 5 | 1 5 3 Penetration Max . | . . . Secondary Targets 1 | . 1 . Max Gunslinging Chain 1 | . 1 . Shots Hit Robots 122 | 7 88 27 Core Hits 50 | 3 33 14 Critical Kills . | . . . Critical Parts Destroyed 1 | . 1 . Critical Strikes 1 | . 1 . Smash 1 | . 1 . Melee Attacks 6 | . 5 1 Impact 5 | . 5 . Slashing 1 | . . 1 Piercing . | . . . Sneak Attacks . | . . . Combat Hostiles . | . . . Follow-up Attacks . | . . . Damage Inflicted 1750 | 95 1161 494 Guns 1387 | 95 1046 246 Cannons 34 | . . 34 Explosions 214 | . . 214 Melee 103 | . 103 . Ramming 12 | . 12 . Kinetic 1310 | 83 981 246 Thermal 77 | . 43 34 Explosive 214 | . . 214 Electromagnetic 34 | 12 22 . Impact 103 | . 103 . Slashing . | . . . Piercing . | . . . Highest Corruption . | . . . Average Corruption . | . . . Corruption Purged . | . . . Corruption Blocked . | . . . Overload Shots . | . . . Overflow Damage 42 | . 42 . Projectiles . | . . . Explosions . | . . . Melee 42 | . 42 . Knockbacks 3 | . 3 . Impact 3 | . 3 . Kinetic . | . . . Secondary . | . . . Self-Inflicted Damage 11 | . . 11 Shots 1 | . . 1 Rammed 1 | . 1 . Targets Rammed 3 | . 3 . Kicked . | . . . Crushed 2 | . 2 . Highest Temperature 114 | . 114 65 Average Temperature 39 | . 48 25 Received Heat Transfer 408 | . 237 171 Siege Activations . | . . . Robots Corrupted . | . . . Combat Hostiles . | . . . Parts Fried 2 | . 2 . Impact Corruptions 1 | . 1 . Robots Melted . | . . . Combat Hostiles . | . . . Parts Melted . | . . . Heat Transferred 185 | . 111 74 Parts Sabotaged . | . . . Parts Stolen . | . . . Parts Stripped . | . . . Power Chain Reactions . | . . . Alert | -11 -10 -10 ------- Run | Yrd Mat Min Peak Influence 165 | 10 165 102 Initial 12 | . 6 12 Average 46 | 3 59 23 Maximum Alert Level . | . . . Low Security (%) 100 | 100 100 100 Level 1 . | . . . Level 2 . | . . . Level 3 . | . . . Level 4 . | . . . Level 5 . | . . . High Security . | . . . Max Security . | . . . Squads Dispatched 3 | . 2 1 Investigation 2 | . 2 . Extermination . | . . . Reinforcement . | . . . Assault 1 | . . 1 Garrison . | . . . Intercept . | . . . Searches Triggered . | . . . Construction Impeded . | . . . Haulers Reinforced . | . . . Active Scanning Responses . | . . . Cargo Convoy Interrupts . | . . . Stealth | -11 -10 -10 --------- Run | Yrd Mat Min Distress Signals 3 | . 3 . Communications Jammed . | . . . Distress Signals . | . . . Times Spotted 41 | . 32 9 Peak Tracking Total 4 | . 4 4 Tactical Retreats 2 | . 2 . Traps | -11 -10 -10 ------- Run | Yrd Mat Min Traps Triggered 2 | . 2 . Indirectly . | . . . Trap Hack Attempts . | . . . Triggered . | . . . Disarmed . | . . . Reprogrammed . | . . . Reused . | . . . Traps Extracted . | . . . Installed . | . . . Triggered . | . . . Machines | -11 -10 -10 ---------- Run | Yrd Mat Min Machines Disabled 1 | . 1 . Max in Single Turn 1 | . 1 . Machines Repaired . | . . . Machines Dismantled . | . . . Machines Sabotaged . | . . . Overloaded Fab Kills . | . . . Hacking | -11 -10 -10 --------- Run | Yrd Mat Min Machines Accessed 11 | . 11 . Terminals 8 | . 8 . Fabricators . | . . . Repair Stations 1 | . 1 . Recycling Units 2 | . 2 . Scanalyzers . | . . . Garrison Access . | . . . Total Hacks 34 | . 34 . Successful 16 | . 16 . Failed 18 | . 18 . Catastrophic 5 | . 5 . Database Lockouts . | . . . Manual 6 | . 6 . Terminals 24 | . 24 . Fabricators . | . . . Repair Stations 1 | . 1 . Recycling Units 9 | . 9 . Scanalyzers . | . . . Garrison Access . | . . . Terminal Hacks 11 | . 11 . Part Schematic 1 | . 1 . Robot Analysis 2 | . 2 . Prototype ID Bank 1 | . 1 . Locate Traps 2 | . 2 . Dispatch Records 2 | . 2 . Recall Investigation 1 | . 1 . Registered Components 1 | . 1 . Zone Layout 1 | . 1 . Fabricator Hacks . | . . . Repair Station Hacks . | . . . Recycling Unit Hacks 5 | . 5 . Process 2 | . 2 . Report Inventory 1 | . 1 . Retrieve Matter 2 | . 2 . Scanalyzer . | . . . Garrison Access Hacks . | . . . Unauthorized Hacks . | . . . Terminals . | . . . Fabricators . | . . . Repair Stations . | . . . Recycling Units . | . . . Scanalyzers . | . . . Garrison Access . | . . . Data Cores Recovered . | . . . Used . | . . . Hacking Detections 8 | . 8 . Full Trace Events 4 | . 4 . Feedback Events . | . . . Feedback Blocked . | . . . Robot Schematics Acquired . | . . . Robots Built . | . . . Authchips . | . . . Time . | . . . Total Robot Build Rating . | . . . Part Schematics Acquired 1 | . 1 . Parts Built . | . . . Authchips . | . . . Time . | . . . Total Part Build Rating . | . . . Parts Repaired . | . . . Time . | . . . Parts Recycled . | . . . Recycled Matter 300 | . 300 . Retrieved Matter 344 | . 344 . Retrieved Components . | . . . Parts Scanalyzed . | . . . Part Schematics Acquired . | . . . Parts Damaged . | . . . Bothacking | -11 -10 -10 ------------ Run | Yrd Mat Min Used RIF Installer . | . . . Robots Hacked . | . . . Non-combat . | . . . Combat . | . . . Robot Hacks Applied . | . . . Relay Couplers Released . | . . . Fabnet Peak Effective % . | . . . Robots Rewired . | . . . Allies Hacked . | . . . Hacks Repelled . | . . . Allies | -11 -10 -10 -------- Run | Yrd Mat Min Total Allies 1 | . . 1 Largest Group 1 | . . 1 Highest-Rated Group 31 | . . 31 Highest-Rated Ally 31 | . . 31 Total Orders . | . . . Ally Attacks 6 | . . 6 Total Damage 109 | . . 109 Kills 1 | . . 1 Allies Corrupted . | . . . Allies Melted . | . . . Intel | -11 -10 -10 ------- Run | Yrd Mat Min Robot Analysis Total 2 | . 2 . Derelict Logs Recovered . | . . . Drone Launches . | . . . Drone Recoveries . | . . . Exploration | -11 -10 -10 ------------- Run | Yrd Mat Min Turns Passed 3326 | 168 2154 1004 Spaces Moved 1692 | 89 1039 564 Core 5 | 5 . . Treads 1326 | 84 1022 220 Legs . | . . . Wheels 361 | . 17 344 Hover . | . . . Flight . | . . . Fastest Speed 50 | 50 100 125 Average Speed 152 | 153 159 140 Slowest Speed 240 | 160 160 240 Overloaded Moves . | . . . Propulsion Burnouts . | . . . Robots Hopped . | . . . Cave-ins Triggered . | . . . Exploration Rate (%) 51 | 6 94 53 Regions Visited 2 Branch Regions 1 Pre-discovered Areas 1 | . . 1 Known Exits Taken . | . . . Unknown Exits Taken 2 | 1 1 . Scrap Searched 1 | . . 1 Spaces Dug 1 | . . 1 Terrain Destroyed 15 | . . 15 Melee 1 | . . 1 Projectile . | . . . AOE 14 | . . 14 Terrain Rammed . | . . . Walls Destroyed . | . . . Machines Disabled . | . . . Actions | -11 -10 -10 --------- Run | Yrd Mat Min Total 2227 | 108 1379 740 Wait 328 | . 200 128 Move 1690 | 88 1038 564 Hop . | . . . Pick Up 30 | 5 19 6 Fast Attach 12 | 7 3 2 Attach 5 | . 2 3 Detach . | . . . Swap 22 | . 14 8 Drop 18 | . 14 4 Fire 112 | 8 81 23 Melee 6 | . 5 1 Ram . | . . . Kick . | . . . Crush 3 | . 3 . Escape Stasis . | . . . Rewire 1 | . . 1 Trap . | . . . Miscellaneous . | . . . Route ------- -11/Scrapyard -10/Materials (discovered 4 exits: [*Mat x3] / [*Min]) -10/Mines (discovered 2 exits: [*Mat] / [*Sub]) History --------- Turn | Location | Event 9 | -11/Scrapyard | Discovered new exit (range 14) 169 | -11/Scrapyard | Entered Materials 303 | -10/Materials | Build established: Mutant 734 | -10/Materials | Discovered new exit (range 7) 1377 | -10/Materials | Discovered new exit (range 16) 1400 | -10/Materials | Derelicts attacked the area 1571 | -10/Materials | Discovered new exit (range 10) 1678 | -10/Materials | Core integrity fell below 50% 1992 | -10/Materials | Build established: Scavenger-Mutant 2089 | -10/Materials | Discovered new exit (range 14) 2323 | -10/Materials | Entered Mines 2535 | -10/Mines | Discovered new exit (range 12) 2587 | -10/Mines | Core integrity fell below 20% 2636 | -10/Mines | Lost 4 parts (1p1n2w) 3016 | -10/Mines | Met a Derelict testing a Signal Generator 3177 | -10/Mines | Discovered new exit (range 11) 3214 | -10/Mines | Learned location of Storage (-9) 3327 | -10/Mines | Destroyed self with Grenade Launcher Last Messages --------------- K-01 Serf collects debris. Acquired Ion Engine. Dropped Lgt. Ion Engine. K-01 Serf collects debris. EXIT=FOUND A derelict emerges from the shadows: "Are any of them following you? I'm here trying to lose some heat after our second raid on Storage failed. Whatever you do stay away from that place, they've tightened security following our previous successful raids." World map updated: -9/Storage. BX-V9F(g): "We scattered so the Unaware couldn't effectively use their advantage in numbers, and I suggest you do the same." BX-V9F(g) slips back into the shadows. G-47 Trooper unfolds itself. G-34 Mercenary unfolds itself. M-13 Machinist unfolds itself. 4O-KI5(g) destroyed. G-34 Mercenary destroyed. Map ----- +----------------------------------------------------+ | ???????????????????????????????????????????????# | | ???????????????????????????????????????????????# | | ????????????? ????????????????????????????????## | | ????????????? ###????????????????????????????## | | ?????????????# #???????????????????????????# | | ?????????????# #??????????????????????????# | | ?????????????# & ##?????????????????###????# ## | | ?????????????# ????????????????## ##??# #? | | ??????????????# ????????????????# #??# #? | | ??????????????# ????????????????# #??# #? | | ???????????????# ????????####?????# ##?# #? | | ????????????????# ???????## ##?????# ### #? | | ????????????????# ######## #?????# ## | | ????????????????# ! #######! | | ????????????????# ! ! = = | | ????????????????# ###### ! | | ????????????????## ???????# ####### | | ??????????????????????????# ###### | | ??????????????????????????# r #???# ##[ | | ?????????????????????????## ! t #???# # ### | | ???????????????????????### |% ##??## ## #?? | | ??????????????????????## #???# ## #?? | | ??????????????????????# ! #??## ### #?? | | ??????????????????????# *%= ##??# #?# #?? | | ??????????????????????# %*%[ #####???## #?# #?? | | ??????????????????????## @!= ##????????####?# ### | | ???????????????????????## ##?????????????## | | ????????????????????????# #??????????????## | | ????????????????????????# = #??#####??????####### | | ??????????? ???????????# %g #?## ###??????????? | | ?????????? #?????# * ### ##?????????? | | ?????????? ## gg ##????????? | | ?????????? m #????????? | | ??????????# ### #?####???? | | ?????????????### ### ### ##??? | | ???????????????## ## #?### ##?# | | ????????????????#???## ## #???## ### | | ????????????????????# ?# ##????# | | ????????????????????# ?## ##?????# | | ????????????????????# ???####?????## #### | | ????????????????????< ????????????# ## #??# | | ???????????????????## ???????????# #### #?? | | ????????????????????##????????????# #??# #?? | | ??????????????????????????????????# #? #?? | | ??????????????????????????????????# #?? | | ??????????????????????????????????# #?? | | ??????????????????????????????????## ### ##?? | | ???????????????????????????????????###???# ##??? | | ?????????????????????????????????????????#####???? | | ?????????????????????????????????????????????????? | +----------------------------------------------------+ Best States ------------- Heat Dissipation 25 Energy Generation 12 Energy Capacity 265 Matter Stores 300 Matter Capacity 300 Sight Range 16 Terrain Scan Density 10 Evasion (%) 40 Recoil Reduction 2 Item Schematics ----------------- Seismic Detector | -10/Materials | Hacked Robot Schematics ------------------ None Fabricated ------------ Nothing Alien Tech Used ----------------- None Achievements -------------- None Challenges ------------ None Game ------ Seed ExplosiveDispersionKit Manual? 0 Play Time 00:41:07 Cumulative 32.3 hours Start 2024.04.14 @ 03:32:36 End 2024.04.14 @ 04:14:33 Sessions 1 Manual Loads 0 Difficulty Rogue Special Mode None Game No. 15 Rogue 15 Adventurer 0 Explorer 0 Win Type - Total 0 Types 0/0/0/0/0/0/0/0/0 Lore% 17 Gallery% 21 Achievement% 19 Wizard Run 0 Options --------- Layout 1 ASCII 0 Keyboard 0 Movement Arrows Keybinds 0 Fullscreen 1 Font 16/SmallcapsGlow Map View 55x38 Zoom Use 0% Tactical HUD 0 Map Filters NONE Filters NONE Steam 0 RUN: cb6734fc-fa2c-4781-8410-235cfc400135